[Event "44th Chess Olympiad Women 2022"]
[Site "Chennai"]
[Date "2022.08.07"]
[Round "9.1"]
[White "Harika, Dronavalli"]
[Black "Socko, Monika"]
[Result "1/2-1/2"]
[WhiteElo "2517"]
[BlackElo "2416"]
[Annotator "TA"]
[PlyCount "81"]
[EventDate "2022.??.??"]
[TimeControl "60"]

{[%evp 9,81,22,50,50,47,36,70,54,50,56,69,42,46,53,47,31,59,43,122,138,190,198,
193,171,184,187,194,169,163,170,230,212,245,173,245,268,257,243,201,180,205,40,
43,46,54,35,58,45,32,30,29,38,46,0,0,0,41,41,38,41,40,23,39,23,25,24,43,16,16,
0,24,0,23,0]} 1. Nf3 {[%emt 0:00:49]} Nf6 {[%emt 0:00:33]} 2. d4 {[%emt 0:00:
00]} e6 {[%emt 0:00:16]} 3. c4 {[%emt 0:00:12]} b6 {[%emt 0:00:41]} 4. a3 {
[%emt 0:00:20]} Ba6 {[%emt 0:01:46]} 5. Qc2 {[%emt 0:01:34]} Be7 {[%emt 0:00:
00]} 6. e4 {[%emt 0:04:35][%cal Ye2e4,Ye4e5] E12: Queen's Indian: Unusual
White 4th moves, 4 a3, 4 Nc3 Bb7 5 a3 and 4 Nc3 Bb7 .} d5 {[%emt 0:00:00]} 7.
e5 {[%emt 0:10:27]} Nfd7 {[%emt 0:07:35]} 8. cxd5 {[%emt 0:08:04] White is
slightly better.} Bxf1 {[%emt 0:02:00]} 9. Kxf1 {[%emt 0:00:15] Threatens to
win with dxe6.} exd5 {[%emt 0:00:22]} 10. g3 {[%emt 0:00:47]} Nf8 {[%emt 0:07:
44]} 11. Nc3 {[%emt 0:06:18]} Ne6 {[%emt 0:00:54]} 12. Kg2 {[%emt 0:04:52]} O-O
{[%emt 0:00:40] [#]} 13. Be3 $146 {[%emt 0:10:24]} ({Predecessor:} 13. b4 c6
14. h4 f5 15. Ne2 a5 16. Bd2 a4 17. Bg5 b5 18. Bxe7 Qxe7 19. Ng5 {1-0 (33)
Petran,P (2386)-Lorincz,I (2337) Budapest 2004}) 13... c6 {[%emt 0:08:00] [#]}
({Better is} 13... Qd7 $14) 14. h4 $1 $16 {[%emt 0:00:00][%cal Yf3g5,Yh2h4,
Yh4g5] White is more active.} Nd7 {[%emt 0:05:15] [#]} (14... Re8 $16 15. Ng5
Nf8) 15. Ng5 $1 $18 {[%emt 0:05:31]} Bxg5 {[%emt 0:00:00]} 16. hxg5 {[%emt 0:
00:12][%csl Gh1][%cal Rc2h7]} g6 {[%emt 0:00:05]} 17. f4 {[%emt 0:02:17]} Re8 {
[%emt 0:02:49]} 18. Qe2 {[%emt 0:04:10]} Ndf8 {[%emt 0:03:47]} 19. Qf3 {
[%emt 0:00:26]} a5 {[%emt 0:04:19]} (19... Rb8 $142 20. g4 b5) 20. Rh6 {
[%emt 0:04:39]} b5 {[%emt 0:04:16]} 21. Nd1 {[%emt 0:01:12] Nf2 is the strong
threat.} b4 {[%emt 0:08:45]} (21... c5 {might work better.}) 22. Nf2 {[%emt 0:
03:21]} bxa3 {[%emt 0:01:17]} 23. bxa3 {[%emt 0:00:12]} ({Less strong is} 23.
Rxa3 Qb6 $16) 23... Qb6 {[%emt 0:01:27]} 24. Rah1 {[%emt 0:00:00]} Qb2 {
[%emt 0:02:46]} 25. f5 $2 {[%emt 0:06:17]} (25. g4 $18) 25... Nxd4 $14 {
[%emt 0:06:43]} 26. Bxd4 {[%emt 0:00:21]} Qxd4 {[%emt 0:00:02]} 27. Ng4 $1 {
[%emt 0:03:18] White wants to mate with fxg6.} Qd2+ {[%emt 0:10:13]} 28. Qf2 {
[%emt 0:00:37] Dancing on a razor blade.} Qxf2+ {[%emt 0:00:39]} 29. Kxf2 {
[%emt 0:00:04] And now Nf6+ would win.} gxf5 {[%emt 0:00:07]} 30. Nf6+ {
[%emt 0:00:36]} Kg7 {[%emt 0:00:02]} 31. Nh5+ {[%emt 0:03:24]} (31. Nxe8+ $14
Rxe8 32. Rxc6) 31... Kg8 {[%emt 0:00:29]} 32. Nf6+ {[%emt 0:00:22]} ({But not} 
32. Rxc6 Reb8 $15) 32... Kg7 {[%emt 0:00:01]} 33. Nxe8+ {[%emt 0:01:47]} Rxe8 {
[%emt 0:00:02]} 34. Rxc6 {[%emt 0:00:12] Endgame KRR-KRN} Ne6 {[%emt 0:01:55]}
35. Rd1 {[%emt 0:03:09]} d4 {[%emt 0:00:53]} 36. Ra6 {[%emt 0:00:00]} Rb8 {
[%emt 0:02:29]} 37. Rxa5 {[%emt 0:00:33]} Rb2+ {[%emt 0:00:07]} 38. Kf1 {
[%emt 0:00:46]} Rb3 {[%emt 0:00:45] Inhibits Rd3.} 39. Kf2 {[%emt 0:00:00]}
Rb2+ {[%emt 0:00:04]} 40. Kf1 {[%emt 0:01:22]} Rb3 {[%emt 0:00:02]} 41. Kf2 {
[%emt 0:30:53] Black defended with fortune. Weighted Error Value: White=0.20 
(precise) /Black=0.12 (very precise)} 1/2-1/2

[Event "44th Chess Olympiad Women 2022"]
[Site "Chennai"]
[Date "2022.08.07"]
[Round "9.1"]
[White "Kashlinskaya, Alina"]
[Black "Koneru, Humpy"]
[Result "1/2-1/2"]
[WhiteElo "2505"]
[BlackElo "2586"]
[Annotator "TA"]
[PlyCount "69"]
[EventDate "2022.??.??"]
[TimeControl "60"]

{[%evp 15,69,16,17,16,29,8,14,22,24,9,15,15,15,17,14,15,13,17,18,14,15,26,28,
26,35,34,32,2,5,0,18,0,12,0,9,0,0,0,6,6,6,6,6,6,7,9,0,2,33,7,14,11,22,0,0,0]} 
1. d4 {[%emt 0:00:04]} Nf6 {[%emt 0:00:10]} 2. c4 {[%emt 0:00:07]} e6 {[%emt 0:
00:00]} 3. Nf3 {[%emt 0:00:09]} d5 {[%emt 0:00:14]} 4. Nc3 {[%emt 0:00:08]}
Nbd7 {[%emt 0:00:20]} 5. Bg5 {[%emt 0:00:24]} h6 {[%emt 0:01:02]} 6. Bh4 {
[%emt 0:00:20]} Be7 {[%emt 0:00:17]} 7. e3 {[%emt 0:00:13]} O-O {[%emt 0:00:32]
} 8. Qc2 {[%emt 0:00:17]} c5 {[%emt 0:02:06]} 9. dxc5 {[%emt 0:00:28] D61:
Queen's Gambit Declined: Classical: 7 Qc2.} Qa5 {[%emt 0:14:22]} 10. cxd5 {
[%emt 0:07:57]} Nxd5 {[%emt 0:00:58]} 11. Bxe7 {[%emt 0:00:36]} Nxe7 {[%emt 0:
00:00]} 12. Be2 {[%emt 0:04:23]} Qxc5 {[%emt 0:01:30]} 13. O-O {[%emt 0:02:17]}
Nf6 {[%emt 0:04:09]} 14. Rac1 {[%emt 0:04:48][%cal Ya1c1,Yc1c2,Yc2d2]} Bd7 {
[%emt 0:07:46] [#]} 15. Ne4 $146 {[%emt 0:24:09]} ({Predecessor:} 15. Nd4 Qb6
16. Qb3 Qxb3 17. Nxb3 Rac8 18. Na5 b6 19. Nb3 a5 20. Nd4 Rc5 21. Nb3 {½-½ 
(49) Thorarinsson,P (2275)-Sargissian,G (2672) London 2017}) 15... Qxc2 {
[%emt 0:04:53]} 16. Nxf6+ {[%emt 0:00:10]} gxf6 {[%emt 0:00:03]} 17. Rxc2 {
[%emt 0:00:07]} Rfc8 {[%emt 0:00:47] Inhibits Rc7.} 18. Rd2 {[%emt 0:01:53]}
Be8 {[%emt 0:12:32]} 19. Nd4 {[%emt 0:06:35]} Rc7 {[%emt 0:10:31]} 20. Rfd1 {
[%emt 0:00:37]} Rac8 {[%emt 0:02:00]} 21. Nb5 {[%emt 0:14:53]} Bxb5 {[%emt 0:
00:00]} 22. Bxb5 {[%emt 0:00:06]} Rc1 {[%emt 0:06:10]} 23. Ba4 {[%emt 0:02:37]}
Nd5 {[%emt 0:05:30]} 24. Kf1 {[%emt 0:00:35]} Nb6 {[%emt 0:03:32]} 25. Rxc1 {
[%emt 0:04:19]} Rxc1+ $11 {[%emt 0:00:07] Endgame KRB-KRN} 26. Rd1 {[%emt 0:00:
28]} Rc7 {[%emt 0:04:20]} 27. Bb3 {[%emt 0:12:25]} Nc4 {[%emt 0:00:00]} 28.
Bxc4 {[%emt 0:02:44]} Rxc4 {[%emt 0:00:06] KR-KR} 29. Rd7 {[%emt 0:00:00]} Rc1+
{[%emt 0:02:27]} 30. Ke2 {[%emt 0:00:04]} Rc2+ {[%emt 0:00:08]} 31. Rd2 {
[%emt 0:00:05]} Rc7 {[%emt 0:02:49]} 32. e4 {[%emt 0:05:11]} Kf8 {[%emt 0:00:
00] The position is equal.} 33. Ke3 {[%emt 0:00:47]} Ke7 {[%emt 0:01:51]} 34.
Kf3 {[%emt 0:02:49]} Rc5 {[%emt 0:00:54]} 35. Ke3 {[%emt 0:00:14] Weighted
Error Value: White=0.07 (flawless) /Black=0.05 (flawless)} 1/2-1/2

[Event "44th Chess Olympiad Women 2022"]
[Site "Chennai"]
[Date "2022.08.07"]
[Round "9.1"]
[White "Kiolbasa, Oliwia"]
[Black "Vaishali R"]
[Result "1-0"]
[WhiteElo "2376"]
[BlackElo "2442"]
[Annotator "TA"]
[PlyCount "159"]
[EventDate "2022.??.??"]
[TimeControl "60"]

{[%evp 9,159,33,47,41,37,24,39,32,35,35,35,17,20,28,31,41,44,43,70,67,61,0,12,
0,10,26,27,17,25,16,31,-19,10,26,33,27,41,4,3,3,5,0,0,0,29,0,0,0,11,21,18,4,40,
37,67,70,70,60,65,59,85,38,31,22,22,39,75,12,68,68,68,68,114,75,213,206,235,87,
216,210,181,100,167,63,152,78,75,87,89,33,33,33,240,35,271,300,300,300,300,152,
300,153,300,300,300,0,324,324,324,0,0,0,0,0,0,0,215,8,8,8,215,215,215,8,29969,
29971,29970,29971,29972,29973,29973,29974,29974,29975,29975,29976,29976,29977,
29978,29979,29979,29978,29978,29979,29979,29980,29980,29981,29981,29981,29980,
29975]} 1. e4 {[%emt 0:00:03]} e5 {[%emt 0:00:38]} 2. Nf3 {[%emt 0:00:13]} Nc6
{[%emt 0:00:04]} 3. Bb5 {[%emt 0:00:12]} a6 {[%emt 0:00:06]} 4. Ba4 {[%emt 0:
00:00]} Bc5 {[%emt 0:00:19]} 5. c3 {[%emt 0:02:24]} Nge7 {[%emt 0:00:15]} 6. d4
{[%emt 0:01:56] C70: Ruy Lopez: 3...a6 4 Ba4, Norwegian and Delayed Schliemann.
} exd4 {[%emt 0:00:16]} 7. cxd4 {[%emt 0:00:24]} Bb4+ {[%emt 0:00:09]} 8. Nc3 {
[%emt 0:01:57] White is slightly better.} d5 {[%emt 0:00:52]} 9. O-O {[%emt 0:
00:00] Black must now prevent exd5.} dxe4 {[%emt 0:21:42]} 10. Nxe4 {[%emt 0:
00:00]} O-O {[%emt 0:02:52]} 11. a3 {[%emt 0:01:32]} Bd6 {[%emt 0:07:31]} 12.
h3 {[%emt 0:05:58]} Bf5 {[%emt 0:02:37]} 13. Re1 {[%emt 0:05:58]} Bg6 {[%emt 0:
00:00]} 14. Bg5 {[%emt 0:07:20] Bxc6 is the strong threat.} f6 {[%emt 0:04:07]
[#]} 15. Nxd6 $146 {[%emt 0:16:34]} (15. Bb3+ $14 Kh8 16. Bd2 (16. Nxd6 Qxd6
17. Be3 Nd5 $11)) ({Predecessor:} 15. Bd2 Bf7 16. Bc2 Qd7 17. Bc3 Bd5 18. Nh4
Bf7 19. Qd3 Ng6 20. Nxd6 cxd6 21. Nf5 {1-0 (58) Nijboer,F (2571)-Heberla,B 
(2487) Kusadasi 2006}) 15... Qxd6 $11 {[%emt 0:01:00]} 16. Bh4 {[%emt 0:04:01]}
Bf7 {[%emt 0:10:31]} 17. Bg3 {[%emt 0:01:27]} (17. Qd3 {is interesting.} Bg6
18. Qc3 Nf5 19. Bxc6 Qxc6 20. Qxc6 bxc6 21. Rac1) 17... Qd7 {[%emt 0:00:13]}
18. Rc1 {[%emt 0:03:02]} Rad8 {[%emt 0:01:04]} 19. b4 {[%emt 0:07:36]} Nf5 {
[%emt 0:07:02]} 20. Bf4 {[%emt 0:02:45]} (20. Bxc6 $14 bxc6 21. Qd3) 20... Kh8
{[%emt 0:06:17]} 21. Qd3 {[%emt 0:05:04][%cal Yf4c7]} b5 {[%emt 0:02:19]} 22.
Bc2 {[%emt 0:04:27]} Bg6 {[%emt 0:02:37][%cal Rf5d4]} 23. Qc3 {[%emt 0:00:48]
Strongly threatening Bxf5.} (23. Qd1 {is more complex.} Ncxd4 24. Nxd4 Nxd4 25.
Bxg6 hxg6 26. Rxc7 Qd5 27. Qg4) 23... Ncxd4 {[%emt 0:08:06]} 24. Nxd4 {[%emt 0:
00:00]} ({Reject} 24. Qxc7 Nxf3+ 25. gxf3 Nh4 26. Qxd7 Nxf3+ 27. Kf1 Rxd7 $15)
24... Nxd4 {[%emt 0:01:33]} 25. Bxg6 {[%emt 0:02:41]} hxg6 {[%emt 0:00:02]} 26.
Qxc7 {[%emt 0:04:22]} Rf7 {[%emt 0:04:04][%cal Yf8f7,Yf7d7,Yd7d3]} 27. Qxd7 {
[%emt 0:02:16]} Rfxd7 {[%emt 0:00:04]} 28. Be3 {[%emt 0:00:45]} Nf5 {[%emt 0:
05:54]} 29. Bb6 {[%emt 0:01:31]} Rb8 {[%emt 0:00:35]} 30. Rc6 {[%emt 0:00:00]}
Rd3 {[%emt 0:04:28]} 31. Ra1 {[%emt 0:00:00]} Ne7 {[%emt 0:03:56]} 32. Re6 {
[%emt 0:00:00] aiming for Bc7.} Nd5 {[%emt 0:00:26] Prevents Bc7.} 33. Bc5 {
[%emt 0:00:00]} Nc3 {[%emt 0:01:43]} 34. Rxa6 {[%emt 0:00:00]} Na4 {[%emt 0:00:
00]} 35. Rd6 {[%emt 0:01:46]} (35. Re1 $16) 35... Nxc5 {[%emt 0:00:35]} 36.
bxc5 $14 {[%emt 0:00:04] Endgame KRR-KRR} Rc3 {[%emt 0:00:02]} 37. c6 {[%emt 0:
00:49]} Rc8 {[%emt 0:00:56]} 38. Rb1 {[%emt 0:00:25]} (38. Rd5 $1 $16) 38...
R3xc6 {[%emt 0:00:29]} (38... Rxa3 $11 39. Rxb5 Rc3) 39. Rxc6 {[%emt 0:00:09]}
Rxc6 {[%emt 0:00:03]} 40. Rxb5 $11 {[%emt 0:00:03] KR-KR} Rc1+ {[%emt 0:00:05]}
41. Kh2 {[%emt 0:30:04]} Ra1 {[%emt 0:30:14]} (41... Rc2 $16) 42. Ra5 $1 $18 {
[%emt 0:02:33]} g5 {[%emt 0:00:00]} 43. Kg3 {[%emt 0:00:00]} (43. Ra8+ $18 {
has better winning chances.} Kh7 44. g3) 43... Ra2 {[%emt 0:00:00]} (43... Rb1
$16 {is a better defense.} 44. a4 Kh7) 44. Kf3 $1 {[%emt 0:00:00]} Kh7 {
[%emt 0:00:00]} 45. Ke3 {[%emt 0:00:00]} ({Better is} 45. Ra7 $18) 45... Kg6 {
[%emt 0:00:00]} (45... Rb2 $16 46. a4 Kg6) 46. Ra7 {[%emt 0:00:00]} (46. Ra6 $1
$18) 46... Kf5 {[%emt 0:00:00]} (46... Rb2 $1 $14) 47. g3 {[%emt 0:00:00]} ({
Worse is} 47. Rxg7 Rxa3+ 48. Ke2 Ra2+ 49. Ke3 Ra3+ 50. Ke2 Ra2+ 51. Ke3 Ra3+
$11) (47. Kf3 $142) 47... Ke5 $16 {[%emt 0:00:00]} 48. Kf3 {[%emt 0:00:00]} Kf5
{[%emt 0:00:00]} 49. a4 {[%emt 0:00:00]} (49. Ra5+ $16 Ke6 50. Ra8) 49... Ra3+
$14 {[%emt 0:00:00]} 50. Kg2 {[%emt 0:00:00]} Kg6 $2 {[%emt 0:00:00]} (50...
Ra1 $14) 51. a5 $2 {[%emt 0:00:00]} (51. g4 $1 $18) 51... Kh6 $2 {[%emt 0:00:
00]} (51... Kf5 $14) 52. a6 $18 {[%emt 0:00:00]} Kg6 {[%emt 0:00:00]} 53. Ra8 {
[%emt 0:00:00]} Kf5 {[%emt 0:00:00]} 54. Kf1 {[%emt 0:00:00]} (54. f3 $1 $18)
54... Ra2 {[%emt 0:00:00]} (54... g4 $16) 55. a7 {[%emt 0:00:00]} (55. f3 $1
$18) 55... Kg6 {[%emt 0:00:00]} (55... g4 $16) 56. Ke1 {[%emt 0:00:00]} Kf7 {
[%emt 0:00:00]} 57. h4 $2 {[%emt 0:02:53]} (57. f3 $18) 57... Kg6 $2 {[%emt 0:
05:26]} (57... gxh4 $11 {and Black stays safe.} 58. gxh4 Kg6) 58. h5+ {[%emt 0:
00:28]} Kf7 {[%emt 0:00:06]} 59. f4 $2 {[%emt 0:03:27]} ({White should play} 
59. g4 $18) 59... gxf4 $11 {[%emt 0:01:13]} 60. gxf4 {[%emt 0:00:04] Hoping
for f5.} f5 {[%emt 0:00:50]} 61. Kd1 {[%emt 0:00:08]} Ra1+ {[%emt 0:00:21]} 62.
Ke2 {[%emt 0:00:12]} Ra2+ $2 {[%emt 0:00:04]} (62... Ra4 $1 $11 {and Black is
okay.} 63. h6 Kg6) 63. Kf3 $1 $18 {[%emt 0:00:05] And now Kg3 would win.} Ra3+
{[%emt 0:00:15]} 64. Kg2 {[%emt 0:00:04] Threatens to win with Kf2.} Ra2+ $2 {
[%emt 0:00:53]} (64... Ra1 $11 65. Kf2 Ra3) 65. Kg3 $1 {[%emt 0:00:12]} Ra4 {
[%emt 0:00:07] [#]} 66. Kh3 $2 {[%emt 0:00:13]} ({White must play} 66. Kh4 $1
$18 {[%cal Rh4g5] White threatens Kg5 and mate.} Rxf4+ 67. Kg5 Rg4+ 68. Kxf5)
66... Ra3+ $2 {[%emt 0:01:13]} (66... Ra2 $11 67. Kh4 Ra6) 67. Kh4 {[%emt 0:00:
06] White mates.} Ra4 {[%emt 0:00:04]} 68. Kg5 {[%emt 0:00:05]} Ra5 {[%emt 0:
00:03] [#]} 69. h6 $1 {[%emt 0:01:48]} gxh6+ {[%emt 0:00:31]} 70. Kxh6 {
[%emt 0:00:03]} Ra6+ {[%emt 0:00:59]} 71. Kg5 {[%emt 0:00:09]} Kg7 {[%emt 0:00:
08]} 72. Kxf5 {[%emt 0:00:05]} Ra1 {[%emt 0:00:00]} 73. Ke5 {[%emt 0:00:29]}
Re1+ {[%emt 0:00:35]} 74. Kd4 {[%emt 0:00:23]} Rd1+ {[%emt 0:00:10]} 75. Ke3 {
[%emt 0:00:08]} Re1+ {[%emt 0:00:09]} 76. Kd2 {[%emt 0:00:03]} Ra1 {[%emt 0:01:
56]} 77. f5 {[%emt 0:00:13][%cal Yf4f5,Yf5f6]} Ra2+ {[%emt 0:00:08]} 78. Kc3 {
[%emt 0:00:07]} Ra3+ {[%emt 0:00:15]} 79. Kb2 {[%emt 0:00:31]} Ra6 {[%emt 0:00:
05]} 80. f6+ {[%emt 0:01:12] Weighted Error Value: White=0.44/Black=0.47} 1-0

[Event "44th Chess Olympiad Women 2022"]
[Site "Chennai"]
[Date "2022.08.07"]
[Round "9.1"]
[White "Tania, Sachdev"]
[Black "Malicka, Maria"]
[Result "1/2-1/2"]
[WhiteElo "2399"]
[BlackElo "2393"]
[Annotator "TA"]
[PlyCount "65"]
[EventDate "2022.??.??"]
[TimeControl "60"]

{[%evp 21,65,8,28,25,27,0,0,0,0,0,0,0,17,0,0,0,0,0,0,0,0,0,0,0,0,-10,0,0,0,0,0,
0,25,33,56,0,0,0,0,0,0,0,0,0,0,0]} 1. d4 {[%emt 0:00:34]} Nf6 {[%emt 0:00:04]}
2. c4 {[%emt 0:00:07]} e6 {[%emt 0:00:03]} 3. Nf3 {[%emt 0:00:05]} d5 {[%emt 0:
00:00]} 4. Nc3 {[%emt 0:00:07]} c5 {[%emt 0:00:05]} 5. cxd5 {[%emt 0:01:07]}
Nxd5 {[%emt 0:00:10]} 6. e4 {[%emt 0:00:25]} Nxc3 {[%emt 0:00:06]} 7. bxc3 {
[%emt 0:00:02]} cxd4 {[%emt 0:00:09]} 8. cxd4 {[%emt 0:00:04]} Bb4+ {[%emt 0:
00:00]} 9. Bd2 {[%emt 0:00:33]} Bxd2+ {[%emt 0:00:06]} 10. Qxd2 {[%emt 0:00:04]
} O-O {[%emt 0:00:09]} 11. Bc4 {[%emt 0:01:29]} Nd7 {[%emt 0:00:58]} 12. O-O {
[%emt 0:00:27] D41: Queen's Gambit Declined: Semi-Tarrasch with 5 cxd5.} b6 {
[%emt 0:00:24]} 13. Rac1 {[%emt 0:00:18]} Bb7 {[%emt 0:01:51]} 14. Bd3 {
[%emt 0:04:40]} Rc8 {[%emt 0:15:11]} 15. Qe3 {[%emt 0:09:10]} Qe7 {[%emt 0:00:
00]} 16. e5 {[%emt 0:05:17] [#]} f6 $146 {[%emt 0:14:46]} ({Predecessor:} 16...
h6 17. Nd2 Qg5 18. Qxg5 hxg5 19. Bb5 Nb8 20. Nc4 a6 21. Ba4 b5 22. Nd6 Rxc1 23.
Rxc1 {½-½ (32) Vlajkovic,G (2158)-Bodiroga,P (2331) Novi Sad 2018}) 17. Be4 {
[%emt 0:14:42]} Bxe4 {[%emt 0:09:10]} 18. Qxe4 {[%emt 0:00:24]} fxe5 {[%emt 0:
00:00]} 19. dxe5 {[%emt 0:02:32]} Rxc1 {[%emt 0:03:19]} 20. Rxc1 {[%emt 0:00:
00]} Nc5 {[%emt 0:00:07]} 21. Qe2 {[%emt 0:24:28]} Rd8 {[%emt 0:03:31]} 22. Rd1
{[%emt 0:00:47] Prevents Qd7.} h6 {[%emt 0:05:42]} 23. h4 {[%emt 0:02:01]}
Rxd1+ {[%emt 0:08:07]} 24. Qxd1 {[%emt 0:00:01]} Qd7 {[%emt 0:00:05]} 25. Qxd7
{[%emt 0:12:54]} Nxd7 $11 {[%emt 0:00:05] Endgame KN-KN} 26. Kf1 {[%emt 0:00:
02]} Nc5 {[%emt 0:11:06]} 27. Ke2 {[%emt 0:06:06]} Ne4 {[%emt 0:00:00]} 28. a3
{[%emt 0:03:15]} ({Better is} 28. Nd4 $1 $14) 28... Nc3+ {[%emt 0:00:00] The
position is equal.} 29. Kd3 {[%emt 0:00:22]} Nd1 {[%emt 0:00:02]} 30. Ke2 {
[%emt 0:01:13]} Nc3+ {[%emt 0:00:02]} 31. Kd3 {[%emt 0:00:16]} Nd1 {[%emt 0:00:
02]} 32. Ke2 {[%emt 0:01:40]} Nc3+ {[%emt 0:00:02]} 33. Kd3 {[%emt 0:01:03]
Weighted Error Value: White=0.06 (flawless) /Black=0.05 (flawless)} 1/2-1/2

[Event "44th Chess Olympiad Women 2022"]
[Site "Chennai"]
[Date "2022.08.07"]
[Round "9.2"]
[White "Arabidze, Meri"]
[Black "Buksa, Nataliya"]
[Result "0-1"]
[WhiteElo "2426"]
[BlackElo "2401"]
[Annotator "TA"]
[PlyCount "74"]
[EventDate "2022.??.??"]
[TimeControl "60"]

{[%evp 9,74,31,20,25,31,40,34,40,32,40,25,32,41,33,27,23,15,14,28,18,18,12,15,
0,27,33,32,31,33,33,29,29,32,19,9,20,7,-241,-41,-56,0,0,0,0,0,0,0,0,0,0,0,0,0,
0,0,-286,-289,-1049,-1045,-29982,-29981,-29981,-29982,-29982,0,-29983,-29984]} 
1. d4 {[%emt 0:00:04]} d5 {[%emt 0:00:10]} 2. c4 {[%emt 0:00:09]} e6 {[%emt 0:
00:00]} 3. Nc3 {[%emt 0:00:09]} Nf6 {[%emt 0:00:04][%cal Yg8f6,Yf6d5,Yd5c3]} 4.
Nf3 {[%emt 0:00:18]} Nbd7 {[%emt 0:00:05]} 5. Bf4 {[%emt 0:01:00]} dxc4 {
[%emt 0:00:16]} 6. e3 {[%emt 0:00:26] D37: Queen's Gambit Declined: 5 Bf4.} b5
{[%emt 0:00:05]} 7. Nxb5 {[%emt 0:00:30]} Bb4+ {[%emt 0:00:04]} 8. Nc3 {
[%emt 0:00:32] White is slightly better.} Nd5 {[%emt 0:00:05]} 9. a3 {[%emt 0:
00:00]} (9. Bxc4 Nxc3 10. bxc3 Bxc3+ 11. Nd2 Bxa1 12. Qxa1 O-O $17) 9... Nxc3 {
[%emt 0:00:06]} 10. Qd2 {[%emt 0:00:30] Pin} Bxa3 {[%emt 0:00:05]} 11. Qxc3 {
[%emt 0:01:42]} (11. Rxa3 Nb1 12. Qc2 Nxa3 13. bxa3 c5 14. Bxc4 Qa5+ 15. Qd2
Qxd2+ 16. Kxd2 Nb6 $17) 11... Bd6 {[%emt 0:00:06]} 12. Bxd6 {[%emt 0:00:57]}
cxd6 {[%emt 0:00:03]} 13. Bxc4 {[%emt 0:00:07]} O-O {[%emt 0:00:20]} 14. d5 {
[%emt 0:02:34]} e5 {[%emt 0:00:22]} 15. O-O {[%emt 0:07:44]} a5 {[%emt 0:22:45]
[#]} 16. Bb5 $146 {[%emt 0:17:35]} ({Predecessor:} 16. Nd2 Bb7 17. b3 Qb6 18.
Ra2 Rfc8 19. e4 Rc5 20. Rfa1 Qd8 21. b4 axb4 22. Rxa8 Bxa8 23. Qxb4 {1-0 (37)
Giri,A (2764)-Kramnik,V (2753) chess24.com INT 2020}) 16... Qb6 {[%emt 0:14:09]
} 17. Bc6 {[%emt 0:03:35]} Rb8 {[%emt 0:13:17]} 18. Nd2 {[%emt 0:03:54]} Nc5 $1
{[%emt 0:07:18]} 19. Nc4 {[%emt 0:19:01]} (19. Qxa5 Qxa5 20. Rxa5 Ba6 $11)
19... Qd8 {[%emt 0:00:23]} 20. Nxa5 {[%emt 0:07:06] Threatens to win with b4.}
Ba6 {[%emt 0:10:03]} 21. Rfd1 {[%emt 0:01:49] Hoping for b4.} Qh4 {[%emt 0:00:
00] Prevents b4.} 22. f3 {[%emt 0:05:21]} f5 {[%emt 0:01:38]} 23. g3 $2 {
[%emt 0:05:58]} (23. b3 $11 {and White has nothing to worry.}) 23... Qh6 $2 {
[%emt 0:07:35]} (23... Qh5 $1 $19 24. b4 Qxf3 25. bxc5 f4) 24. Rd2 {[%emt 0:00:
00][%cal Yd1d2,Yd2g2,Yg2g3] [#] Inhibits Be2.} Nd3 $1 {[%emt 0:11:25]} 25. f4
$1 $11 {[%emt 0:00:06]} Nc5 {[%emt 0:01:34] Prevents Nb3.} 26. Rg2 {[%emt 0:01:
52]} (26. fxe5 $2 Ne4 27. Nc4 Nxc3 $19) 26... Ne4 $36 {[%emt 0:00:00] Black is
more active.} 27. Qc1 {[%emt 0:01:54]} exf4 {[%emt 0:00:00]} 28. gxf4 {[%emt 0:
01:55]} Nc5 {[%emt 0:02:44] ...Rf6 is the strong threat.} 29. Qc3 {[%emt 0:01:
19]} ({Don't blunder} 29. Nc4 $2 Nb3 30. Qd1 Nxa1 $19) 29... Bd3 {[%emt 0:01:
29] And now ...Rf6 would win.} 30. b4 {[%emt 0:00:00]} Be4 {[%emt 0:00:04]} 31.
Rg3 {[%emt 0:01:07]} ({Wrong is} 31. bxc5 $2 Bxg2 32. Kxg2 Rf6 $19) 31... Nd3 {
[%emt 0:00:18] Strongly threatening ...Rf6. Really sharp!} 32. b5 $2 {[%emt 0:
01:00] [#]} (32. Nc4 $11 {and White stays safe.} Rf6 33. Nd2) 32... Rf6 $1 $19
{[%emt 0:00:23] ( -> ...Rg6)} 33. Rd1 $2 {[%emt 0:01:00] [#]} (33. Ra4) 33...
Rg6 $1 {[%emt 0:00:33]} 34. Rxd3 {[%emt 0:00:21]} Rxg3+ {[%emt 0:00:17]} 35.
hxg3 {[%emt 0:00:01]} Qh1+ {[%emt 0:01:11]} 36. Kf2 {[%emt 0:00:01]} Qg2+ {
[%emt 0:00:49]} 37. Ke1 {[%emt 0:00:01][%cal Ya5c4] Black must now prevent Nc4!
} Bf3 {[%emt 0:00:04] Weighted Error Value: White=0.66/Black=0.26 (precise)}
0-1